[Event "Early-Titled-Tuesday-Blitz-October-10-2023"]
[Site "Chess.com"]
[Date "2023.10.10"]
[Round "2"]
[White "ellatambien"]
[Black "eljanov"]
[Result "0-1"]
[WhiteElo "2605"]
[BlackElo "2909"]
[TimeControl "180+1"]
[EndTime "8:17:42 PDT"]
[Termination "eljanov won by checkmate"]

1. c4 {[%clk 0:02:54.7]} 1... Nf6 {[%clk 0:02:59]} 2. Nc3 {[%clk 0:02:54]} 2...
e5 {[%clk 0:02:59.3]} 3. Nf3 {[%clk 0:02:52.9]} 3... Nc6 {[%clk 0:02:59.6]} 4.
e4 {[%clk 0:02:51.8]} 4... Bb4 {[%clk 0:02:57.2]} 5. d3 {[%clk 0:02:52]} 5... d6
{[%clk 0:02:57.6]} 6. Be2 {[%clk 0:02:52]} 6... Bc5 {[%clk 0:02:53]} 7. O-O
{[%clk 0:02:50.8]} 7... O-O {[%clk 0:02:52.5]} 8. Nd2 {[%clk 0:02:51.4]} 8... a5
{[%clk 0:02:49.8]} 9. Nb3 {[%clk 0:02:43.1]} 9... Bb6 {[%clk 0:02:47.3]} 10. Kh1
{[%clk 0:02:42.3]} 10... a4 {[%clk 0:02:19.9]} 11. Nd2 {[%clk 0:02:41.7]} 11...
a3 {[%clk 0:02:20.4]} 12. bxa3 {[%clk 0:02:32.4]} 12... Bd4 {[%clk 0:02:18.9]}
13. Bb2 {[%clk 0:02:31.1]} 13... h6 {[%clk 0:02:09.3]} 14. Nb3 {[%clk
0:02:31.1]} 14... Bxc3 {[%clk 0:01:46.9]} 15. Bxc3 {[%clk 0:02:30.2]} 15... Rxa3
{[%clk 0:01:47.6]} 16. f4 {[%clk 0:02:28.9]} 16... b6 {[%clk 0:01:41]} 17. Qe1
{[%clk 0:02:17.9]} 17... Nd7 {[%clk 0:01:37.5]} 18. Qg3 {[%clk 0:02:09.6]} 18...
f6 {[%clk 0:01:36.8]} 19. f5 {[%clk 0:02:03.1]} 19... Nc5 {[%clk 0:01:36.4]} 20.
Bd2 {[%clk 0:02:01]} 20... Kh8 {[%clk 0:01:24]} 21. Bxh6 {[%clk 0:01:28.1]}
21... gxh6 {[%clk 0:01:15.2]} 22. Qg6 {[%clk 0:01:28.1]} 22... Qe7 {[%clk
0:01:02]} 23. Qxh6+ {[%clk 0:01:27.7]} 23... Kg8 {[%clk 0:01:02.4]} 24. Rf3
{[%clk 0:01:26.8]} 24... Rf7 {[%clk 0:01:02.7]} 25. Rh3 {[%clk 0:01:17.5]} 25...
Rh7 {[%clk 0:01:02.1]} 26. Qg6+ {[%clk 0:01:17.4]} 26... Kh8 {[%clk 0:00:59.1]}
27. Rxh7+ {[%clk 0:01:06]} 27... Qxh7 {[%clk 0:00:59.1]} 28. Qe8+ {[%clk
0:01:06.6]} 28... Qg8 {[%clk 0:00:56.6]} 29. Qxc6 {[%clk 0:00:56.5]} 29... Nxb3
{[%clk 0:00:54.2]} 30. Rg1 {[%clk 0:00:51.8]} 30... Nd4 {[%clk 0:00:53.7]} 31.
Qxc7 {[%clk 0:00:44.4]} 31... Nxe2 {[%clk 0:00:53.8]} 32. Re1 {[%clk 0:00:44]}
32... Rxa2 {[%clk 0:00:42.2]} 33. Qxd6 {[%clk 0:00:42.9]} 33... Qg7 {[%clk
0:00:18.9]} 34. Qd8+ {[%clk 0:00:42]} 34... Kh7 {[%clk 0:00:18.8]} 35. Qxc8
{[%clk 0:00:37.4]} 35... Nf4 {[%clk 0:00:19.1]} 36. g3 {[%clk 0:00:34.5]} 36...
Qg4 {[%clk 0:00:19.2]} 37. Rf1 {[%clk 0:00:04.1]} 37... Qf3+ {[%clk 0:00:19]}
38. Rxf3 {[%clk 0:00:03.5]} 38... Ra1+ {[%clk 0:00:19.4]} 39. Rf1 {[%clk
0:00:03.9]} 39... Rxf1# {[%clk 0:00:19.4]} 0-1

[Event "Early-Titled-Tuesday-Blitz-October-10-2023"]
[Site "Chess.com"]
[Date "2023.10.10"]
[Round "2"]
[White "DonCiao"]
[Black "ChainedDowntohell"]
[Result "0-1"]
[WhiteElo "2052"]
[BlackElo "2430"]
[TimeControl "180+1"]
[EndTime "8:17:45 PDT"]
[Termination "ChainedDowntohell won by checkmate"]

1. c4 {[%clk 0:03:00.9]} 1... e5 {[%clk 0:02:55.5]} 2. g3 {[%clk 0:03:00.6]}
2... h5 {[%clk 0:02:50.8]} 3. h3 {[%clk 0:02:54.9]} 3... Bc5 {[%clk 0:02:47.4]}
4. Bg2 {[%clk 0:02:53.1]} 4... h4 {[%clk 0:02:46.8]} 5. g4 {[%clk 0:02:52.4]}
5... d6 {[%clk 0:02:45.5]} 6. e3 {[%clk 0:02:52.3]} 6... Nc6 {[%clk 0:02:41.8]}
7. Ne2 {[%clk 0:02:51.9]} 7... Bb6 {[%clk 0:02:35.3]} 8. Nbc3 {[%clk 0:02:49]}
8... f5 {[%clk 0:02:34.6]} 9. gxf5 {[%clk 0:02:29.5]} 9... Bxf5 {[%clk
0:02:33.9]} 10. d4 {[%clk 0:02:30]} 10... exd4 {[%clk 0:02:24.3]} 11. exd4
{[%clk 0:02:28.7]} 11... Nf6 {[%clk 0:02:22.4]} 12. Be3 {[%clk 0:02:23.8]} 12...
Qe7 {[%clk 0:02:16]} 13. a3 {[%clk 0:02:22]} 13... O-O-O {[%clk 0:02:13.4]} 14.
Qa4 {[%clk 0:02:18.9]} 14... Nxd4 {[%clk 0:02:06.3]} 15. Nxd4 {[%clk 0:02:04.2]}
15... Bxd4 {[%clk 0:02:05.2]} 16. Qb3 {[%clk 0:01:44.6]} 16... c6 {[%clk
0:01:45.4]} 17. Ne2 {[%clk 0:01:27]} 17... Bxe3 {[%clk 0:01:44.1]} 18. fxe3
{[%clk 0:01:26.5]} 18... Rhe8 {[%clk 0:01:42.3]} 19. O-O {[%clk 0:01:25.8]}
19... Be4 {[%clk 0:01:40.5]} 20. Nf4 {[%clk 0:01:01]} 20... g5 {[%clk
0:01:32.2]} 21. Bxe4 {[%clk 0:00:59.1]} 21... Qxe4 {[%clk 0:01:22.1]} 22. Ng2
{[%clk 0:00:58.7]} 22... Nh5 {[%clk 0:01:19.3]} 23. Rf7 {[%clk 0:00:50.4]} 23...
Re7 {[%clk 0:01:11.2]} 24. Raf1 {[%clk 0:00:46]} 24... Ng3 {[%clk 0:01:09]} 25.
Rxe7 {[%clk 0:00:42]} 25... Qxe7 {[%clk 0:01:09.9]} 26. Rf3 {[%clk 0:00:36.7]}
26... Qe6 {[%clk 0:00:57.8]} 27. Kh2 {[%clk 0:00:31.1]} 27... Re8 {[%clk
0:00:55.8]} 28. Qd3 {[%clk 0:00:28.6]} 28... Qe5 {[%clk 0:00:53.4]} 29. Kg1
{[%clk 0:00:25.2]} 29... Qxb2 {[%clk 0:00:50]} 30. Kh2 {[%clk 0:00:14.9]} 30...
Qa1 {[%clk 0:00:42.2]} 31. Rxg3 {[%clk 0:00:14.7]} 31... Qe5 {[%clk 0:00:38.5]}
32. e4 {[%clk 0:00:12.8]} 32... g4 {[%clk 0:00:28.6]} 33. hxg4 {[%clk
0:00:09.8]} 33... hxg3+ {[%clk 0:00:28.3]} 34. Kg1 {[%clk 0:00:08.7]} 34... Qa1+
{[%clk 0:00:23.2]} 35. Qf1 {[%clk 0:00:08.3]} 35... Qd4+ {[%clk 0:00:23.5]} 36.
Kh1 {[%clk 0:00:07.3]} 36... Rh8+ {[%clk 0:00:24.1]} 37. Nh4 {[%clk 0:00:07.5]}
37... Rxh4+ {[%clk 0:00:21]} 38. Kg2 {[%clk 0:00:07]} 38... Qxe4+ {[%clk
0:00:20.7]} 39. Kxg3 {[%clk 0:00:07]} 39... Qxg4+ {[%clk 0:00:18.3]} 40. Kf2
{[%clk 0:00:06.4]} 40... Rh2+ {[%clk 0:00:18.4]} 41. Ke1 {[%clk 0:00:06.3]}
41... Qe4+ {[%clk 0:00:18.3]} 42. Kd1 {[%clk 0:00:06]} 42... Qb1# {[%clk
0:00:18.3]} 0-1

[Event "Early-Titled-Tuesday-Blitz-October-10-2023"]
[Site "Chess.com"]
[Date "2023.10.10"]
[Round "2"]
[White "tarno17"]
[Black "Tsyhanchuk_Stanislav"]
[Result "0-1"]
[WhiteElo "2149"]
[BlackElo "2459"]
[TimeControl "180+1"]
[EndTime "8:17:46 PDT"]
[Termination "Tsyhanchuk_Stanislav won by resignation"]

1. e4 {[%clk 0:03:00.9]} 1... c5 {[%clk 0:02:57.2]} 2. Nf3 {[%clk 0:03:00.9]}
2... d6 {[%clk 0:02:57.1]} 3. Bb5+ {[%clk 0:03:00.4]} 3... Nd7 {[%clk
0:02:56.6]} 4. O-O {[%clk 0:02:59.9]} 4... a6 {[%clk 0:02:49.8]} 5. Bxd7+ {[%clk
0:02:56.3]} 5... Bxd7 {[%clk 0:02:48.4]} 6. Re1 {[%clk 0:02:49.7]} 6... e6
{[%clk 0:02:38.4]} 7. d4 {[%clk 0:02:31.6]} 7... cxd4 {[%clk 0:02:29.4]} 8. Nxd4
{[%clk 0:02:20.4]} 8... Ne7 {[%clk 0:02:27.3]} 9. c4 {[%clk 0:02:10]} 9... Nc6
{[%clk 0:02:26.1]} 10. Nc3 {[%clk 0:02:03.8]} 10... Be7 {[%clk 0:02:23.9]} 11.
b3 {[%clk 0:01:24]} 11... Bf6 {[%clk 0:02:14.6]} 12. Nxc6 {[%clk 0:01:20.8]}
12... Bxc6 {[%clk 0:02:14.4]} 13. Bb2 {[%clk 0:01:19.8]} 13... O-O {[%clk
0:02:09.7]} 14. Qe2 {[%clk 0:00:53.2]} 14... b5 {[%clk 0:01:54]} 15. Rad1 {[%clk
0:00:44.5]} 15... b4 {[%clk 0:01:38.5]} 16. Nb1 {[%clk 0:00:37.8]} 16... Bxb2
{[%clk 0:01:34.8]} 17. Qxb2 {[%clk 0:00:38.7]} 17... Qc7 {[%clk 0:01:28.9]} 18.
Nd2 {[%clk 0:00:30.2]} 18... a5 {[%clk 0:01:26.6]} 19. Nf3 {[%clk 0:00:24.6]}
19... Rfd8 {[%clk 0:01:23]} 20. Nd4 {[%clk 0:00:24.6]} 20... Be8 {[%clk
0:01:19.2]} 21. Qe2 {[%clk 0:00:20.5]} 21... Qc5 {[%clk 0:01:15.4]} 22. Qg4
{[%clk 0:00:15.7]} 22... Bd7 {[%clk 0:01:03.2]} 23. Re3 {[%clk 0:00:14.3]} 23...
g6 {[%clk 0:00:56.9]} 24. Rf3 {[%clk 0:00:06.4]} 24... f5 {[%clk 0:00:30]} 25.
Qg5 {[%clk 0:00:02.3]} 25... Qe5 {[%clk 0:00:21.8]} 26. Rg3 {[%clk 0:00:02.3]}
26... fxe4 {[%clk 0:00:19.9]} 27. Qxe5 {[%clk 0:00:02.4]} 27... dxe5 {[%clk
0:00:20.8]} 28. Ne2 {[%clk 0:00:02.7]} 28... Bc6 {[%clk 0:00:20.6]} 29. Rxd8+
{[%clk 0:00:02.2]} 29... Rxd8 {[%clk 0:00:21.5]} 30. h3 {[%clk 0:00:01.6]} 30...
Rd2 {[%clk 0:00:22]} 31. Re3 {[%clk 0:00:01.8]} 31... Rxa2 {[%clk 0:00:22.2]}
32. Ng3 {[%clk 0:00:02.3]} 32... Rb2 {[%clk 0:00:22.2]} 33. Nxe4 {[%clk
0:00:02.9]} 33... Bxe4 {[%clk 0:00:22.7]} 34. Rxe4 {[%clk 0:00:03.8]} 34... Rxb3
{[%clk 0:00:23.3]} 35. Rxe5 {[%clk 0:00:04.7]} 35... a4 {[%clk 0:00:23.8]} 36.
Rxe6 {[%clk 0:00:04.8]} 36... a3 {[%clk 0:00:24.3]} 37. Ra6 {[%clk 0:00:05.5]}
37... Rb2 {[%clk 0:00:24.6]} 38. Kh2 {[%clk 0:00:05.8]} 38... a2 {[%clk
0:00:25.1]} 39. f3 {[%clk 0:00:06.1]} 39... b3 {[%clk 0:00:25.6]} 40. c5 {[%clk
0:00:06.8]} 40... Rb1 {[%clk 0:00:23.2]} 41. c6 {[%clk 0:00:06.9]} 41... a1=Q
{[%clk 0:00:23.6]} 42. Rxa1 {[%clk 0:00:05.7]} 42... Rxa1 {[%clk 0:00:23.7]} 43.
c7 {[%clk 0:00:06.6]} 43... Rc1 {[%clk 0:00:24.3]} 0-1

[Event "Early-Titled-Tuesday-Blitz-October-10-2023"]
[Site "Chess.com"]
[Date "2023.10.10"]
[Round "2"]
[White "SlavenPastar"]
[Black "ozates"]
[Result "1-0"]
[WhiteElo "2564"]
[BlackElo "2759"]
[TimeControl "180+1"]
[EndTime "8:17:48 PDT"]
[Termination "SlavenPastar won by resignation"]

1. b3 {[%clk 0:03:00.9]} 1... c5 {[%clk 0:02:59.6]} 2. Bb2 {[%clk 0:03:01.4]}
2... Nc6 {[%clk 0:03:00.3]} 3. Nf3 {[%clk 0:03:02]} 3... d6 {[%clk 0:03:00.8]}
4. e3 {[%clk 0:03:02.6]} 4... e5 {[%clk 0:03:01.2]} 5. c4 {[%clk 0:03:00.9]}
5... g6 {[%clk 0:03:00.1]} 6. d3 {[%clk 0:03:01.2]} 6... Bg7 {[%clk 0:03:00.3]}
7. a3 {[%clk 0:02:59.2]} 7... Nge7 {[%clk 0:03:00.5]} 8. Qc2 {[%clk 0:02:59.6]}
8... O-O {[%clk 0:03:01.1]} 9. Be2 {[%clk 0:02:59.6]} 9... h6 {[%clk 0:03:00.1]}
10. Nbd2 {[%clk 0:03:00.1]} 10... f5 {[%clk 0:02:59.8]} 11. O-O {[%clk
0:02:55.7]} 11... g5 {[%clk 0:02:59.9]} 12. Bc3 {[%clk 0:02:53.9]} 12... g4
{[%clk 0:02:58.9]} 13. Ne1 {[%clk 0:02:53.4]} 13... h5 {[%clk 0:02:58.9]} 14. b4
{[%clk 0:02:53.3]} 14... Ng6 {[%clk 0:02:52.5]} 15. b5 {[%clk 0:02:48.9]} 15...
Nce7 {[%clk 0:02:52]} 16. d4 {[%clk 0:02:43.7]} 16... exd4 {[%clk 0:02:47.5]}
17. exd4 {[%clk 0:02:44.6]} 17... cxd4 {[%clk 0:02:37.6]} 18. Bb2 {[%clk
0:02:44.4]} 18... Nf4 {[%clk 0:02:34.3]} 19. Nb3 {[%clk 0:02:44.4]} 19... h4
{[%clk 0:02:12]} 20. Bxd4 {[%clk 0:02:42]} 20... h3 {[%clk 0:02:06.7]} 21. Bxg7
{[%clk 0:02:35.2]} 21... Kxg7 {[%clk 0:02:06]} 22. g3 {[%clk 0:02:34.6]} 22...
Nfg6 {[%clk 0:01:58.2]} 23. Nd3 {[%clk 0:02:31.3]} 23... b6 {[%clk 0:01:57.8]}
24. Nd4 {[%clk 0:02:27.3]} 24... Kh7 {[%clk 0:01:49.2]} 25. Rfe1 {[%clk
0:02:23.9]} 25... Qc7 {[%clk 0:01:41.5]} 26. Rac1 {[%clk 0:01:55.8]} 26... Ne5
{[%clk 0:01:24.8]} 27. Bf1 {[%clk 0:01:33.9]} 27... N7g6 {[%clk 0:01:20.9]} 28.
f4 {[%clk 0:01:23.9]} 28... Nxd3 {[%clk 0:01:01.3]} 29. Bxd3 {[%clk 0:01:14.8]}
29... Qc5 {[%clk 0:01:01.4]} 30. Qf2 {[%clk 0:01:14.9]} 30... Bb7 {[%clk
0:00:59.3]} 31. Ne6 {[%clk 0:01:07.1]} 31... Qxa3 {[%clk 0:00:46.5]} 32. Qd4
{[%clk 0:00:38.1]} 32... Rf7 {[%clk 0:00:12]} 33. Ng5+ {[%clk 0:00:38]} 33...
Kg8 {[%clk 0:00:09.5]} 34. Nxf7 {[%clk 0:00:37.6]} 34... Kxf7 {[%clk 0:00:10.4]}
35. Bxf5 {[%clk 0:00:20.1]} 35... Qc5 {[%clk 0:00:03.9]} 36. Qxc5 {[%clk
0:00:17]} 36... dxc5 {[%clk 0:00:04]} 37. Rcd1 {[%clk 0:00:15.5]} 37... Ne7
{[%clk 0:00:02.6]} 38. Rd7 {[%clk 0:00:12.8]} 1-0

[Event "Early-Titled-Tuesday-Blitz-October-10-2023"]
[Site "Chess.com"]
[Date "2023.10.10"]
[Round "2"]
[White "Aslanov_Umid"]
[Black "xamax2000"]
[Result "0-1"]
[WhiteElo "2583"]
[BlackElo "2852"]
[TimeControl "180+1"]
[EndTime "8:17:50 PDT"]
[Termination "xamax2000 won by resignation"]

1. e4 {[%clk 0:03:00.9]} 1... e5 {[%clk 0:02:59.3]} 2. Nf3 {[%clk 0:03:01.4]}
2... Nc6 {[%clk 0:03:00]} 3. Bc4 {[%clk 0:03:02.1]} 3... Nf6 {[%clk 0:02:59.5]}
4. d3 {[%clk 0:03:01.4]} 4... Bc5 {[%clk 0:03:00]} 5. O-O {[%clk 0:03:01.7]}
5... O-O {[%clk 0:02:59.7]} 6. c3 {[%clk 0:03:02.3]} 6... d6 {[%clk 0:03:00.1]}
7. a4 {[%clk 0:03:02.3]} 7... a5 {[%clk 0:03:00.4]} 8. h3 {[%clk 0:03:01.8]}
8... Ba7 {[%clk 0:02:59.8]} 9. Re1 {[%clk 0:03:01.2]} 9... Be6 {[%clk
0:03:00.1]} 10. Bb5 {[%clk 0:03:00.6]} 10... Ne7 {[%clk 0:03:00]} 11. d4 {[%clk
0:03:00.6]} 11... Ng6 {[%clk 0:03:00.4]} 12. Nbd2 {[%clk 0:02:52.1]} 12... c6
{[%clk 0:02:53.1]} 13. Bd3 {[%clk 0:02:48.5]} 13... h6 {[%clk 0:02:36.5]} 14.
Nf1 {[%clk 0:02:47.8]} 14... d5 {[%clk 0:02:25.4]} 15. exd5 {[%clk 0:02:38.4]}
15... Bxd5 {[%clk 0:02:14.6]} 16. Nxe5 {[%clk 0:02:38.4]} 16... Nxe5 {[%clk
0:02:13.4]} 17. dxe5 {[%clk 0:02:23.3]} 17... Nd7 {[%clk 0:02:09.7]} 18. Qg4
{[%clk 0:02:22.1]} 18... Be6 {[%clk 0:01:33.7]} 19. Qg3 {[%clk 0:02:06.8]} 19...
Kh8 {[%clk 0:01:32.6]} 20. Be3 {[%clk 0:02:03.8]} 20... Nxe5 {[%clk 0:01:28.6]}
21. Bxh6 {[%clk 0:01:36.1]} 21... Bxf2+ {[%clk 0:01:15.6]} 22. Kxf2 {[%clk
0:01:31.2]} 22... Nxd3+ {[%clk 0:01:14.7]} 23. Kg1 {[%clk 0:01:31.8]} 23... gxh6
{[%clk 0:01:13.9]} 24. Rad1 {[%clk 0:01:30.2]} 24... Bf5 {[%clk 0:01:08.5]} 25.
Re5 {[%clk 0:01:22.9]} 25... Bg6 {[%clk 0:00:58.7]} 26. Qe3 {[%clk 0:01:10.3]}
26... Kg7 {[%clk 0:00:41.2]} 27. Ng3 {[%clk 0:01:08.3]} 27... Re8 {[%clk
0:00:19.4]} 28. Nh5+ {[%clk 0:00:47.9]} 28... Bxh5 {[%clk 0:00:15.9]} 29. Rxd3
{[%clk 0:00:48.2]} 29... Qxd3 {[%clk 0:00:14.7]} 30. Qxd3 {[%clk 0:00:30.7]}
30... Rxe5 {[%clk 0:00:15.3]} 31. Qd4 {[%clk 0:00:24.6]} 31... Re8 {[%clk
0:00:15.5]} 32. b4 {[%clk 0:00:21.7]} 32... axb4 {[%clk 0:00:14.9]} 33. cxb4
{[%clk 0:00:22.6]} 33... Re6 {[%clk 0:00:14.2]} 34. a5 {[%clk 0:00:21.2]} 34...
Be2 {[%clk 0:00:14.5]} 35. Qb6 {[%clk 0:00:18.2]} 35... Ba6 {[%clk 0:00:14.9]}
36. Qd4 {[%clk 0:00:17.6]} 36... Kg8 {[%clk 0:00:15.1]} 37. Qd8+ {[%clk
0:00:17.9]} 37... Kh7 {[%clk 0:00:15.7]} 38. Qd4 {[%clk 0:00:17.7]} 38... Rd5
{[%clk 0:00:14.9]} 39. Qf4 {[%clk 0:00:17.3]} 39... Kg8 {[%clk 0:00:14.7]} 40.
Qb8+ {[%clk 0:00:17]} 40... Kg7 {[%clk 0:00:14.4]} 41. Qf4 {[%clk 0:00:16.8]}
41... Rg6 {[%clk 0:00:14.9]} 42. g4 {[%clk 0:00:13.7]} 42... h5 {[%clk
0:00:15.6]} 43. Kf2 {[%clk 0:00:13.5]} 43... hxg4 {[%clk 0:00:16.1]} 44. Ke3
{[%clk 0:00:13.4]} 44... g3 {[%clk 0:00:15.9]} 0-1

[Event "Early-Titled-Tuesday-Blitz-October-10-2023"]
[Site "Chess.com"]
[Date "2023.10.10"]
[Round "2"]
[White "Alina_Gumerovna"]
[Black "LangesNasenhaar"]
[Result "0-1"]
[WhiteElo "2090"]
[BlackElo "2559"]
[TimeControl "180+1"]
[EndTime "8:17:50 PDT"]
[Termination "LangesNasenhaar won by resignation"]

1. e4 {[%clk 0:03:00]} 1... Nc6 {[%clk 0:02:59.8]} 2. d4 {[%clk 0:02:56.9]} 2...
d5 {[%clk 0:02:58.8]} 3. e5 {[%clk 0:02:56.9]} 3... Bf5 {[%clk 0:02:58.6]} 4. c3
{[%clk 0:02:56]} 4... e6 {[%clk 0:02:58.9]} 5. Nf3 {[%clk 0:02:47.5]} 5... Nge7
{[%clk 0:02:54.7]} 6. Be2 {[%clk 0:02:46.6]} 6... Qd7 {[%clk 0:02:54.8]} 7. O-O
{[%clk 0:02:45.2]} 7... f6 {[%clk 0:02:53.1]} 8. Bf4 {[%clk 0:02:34.6]} 8...
O-O-O {[%clk 0:02:38.4]} 9. b4 {[%clk 0:02:33]} 9... h5 {[%clk 0:02:28.5]} 10.
exf6 {[%clk 0:02:30.5]} 10... gxf6 {[%clk 0:02:28]} 11. Qa4 {[%clk 0:02:27.2]}
11... a6 {[%clk 0:02:03.9]} 12. Nbd2 {[%clk 0:02:19.9]} 12... Bh6 {[%clk
0:01:57]} 13. Bxh6 {[%clk 0:02:18.7]} 13... Rxh6 {[%clk 0:01:57.9]} 14. Nb3
{[%clk 0:02:18.6]} 14... Bc2 {[%clk 0:01:51.5]} 15. Rfc1 {[%clk 0:02:10.3]}
15... Bxb3 {[%clk 0:01:51.4]} 16. axb3 {[%clk 0:02:11.2]} 16... Kb8 {[%clk
0:01:45.9]} 17. b5 {[%clk 0:02:10.8]} 17... Na7 {[%clk 0:01:45.1]} 18. bxa6
{[%clk 0:02:07.9]} 18... Qxa4 {[%clk 0:01:43.8]} 19. Rxa4 {[%clk 0:02:07.7]}
19... b6 {[%clk 0:01:38.7]} 20. Re1 {[%clk 0:02:05.9]} 20... Ng6 {[%clk
0:01:26.8]} 21. Bf1 {[%clk 0:01:58.9]} 21... Re8 {[%clk 0:01:24]} 22. g3 {[%clk
0:01:48.2]} 22... h4 {[%clk 0:01:23.5]} 23. Ra2 {[%clk 0:01:39.9]} 23... hxg3
{[%clk 0:01:21.5]} 24. fxg3 {[%clk 0:01:38]} 24... e5 {[%clk 0:01:19.7]} 25.
dxe5 {[%clk 0:01:35.7]} 25... fxe5 {[%clk 0:01:19.8]} 26. Rae2 {[%clk
0:01:34.5]} 26... e4 {[%clk 0:01:19.7]} 27. Nd4 {[%clk 0:01:34.8]} 27... Ne5
{[%clk 0:01:17.8]} 28. Rf2 {[%clk 0:01:32.9]} 28... Nac6 {[%clk 0:01:13.8]} 29.
Nxc6+ {[%clk 0:01:26.2]} 29... Nxc6 {[%clk 0:01:05.9]} 30. Bb5 {[%clk
0:01:25.7]} 30... Rd8 {[%clk 0:00:59.2]} 31. Rd1 {[%clk 0:00:43.6]} 31... Ne5
{[%clk 0:00:51]} 32. Be2 {[%clk 0:00:37.6]} 32... Rc6 {[%clk 0:00:42]} 33. c4
{[%clk 0:00:31.5]} 33... d4 {[%clk 0:00:40.3]} 34. Bf1 {[%clk 0:00:31.6]} 34...
d3 {[%clk 0:00:31.9]} 35. Rf5 {[%clk 0:00:25.9]} 35... Re6 {[%clk 0:00:28]} 36.
h4 {[%clk 0:00:20]} 36... e3 {[%clk 0:00:25.1]} 37. h5 {[%clk 0:00:09.4]} 37...
Ka7 {[%clk 0:00:22]} 38. g4 {[%clk 0:00:03.5]} 38... e2 {[%clk 0:00:21.4]} 39.
Bxe2 {[%clk 0:00:03.2]} 39... dxe2 {[%clk 0:00:22.3]} 40. Re1 {[%clk 0:00:03.5]}
40... Rd1 {[%clk 0:00:21]} 41. Kf2 {[%clk 0:00:02.8]} 41... Nd3+ {[%clk
0:00:21.2]} 0-1

[Event "Early-Titled-Tuesday-Blitz-October-10-2023"]
[Site "Chess.com"]
[Date "2023.10.10"]
[Round "2"]
[White "Darko-Dimitrijevic"]
[Black "FrenchMonster2002"]
[Result "1-0"]
[WhiteElo "2197"]
[BlackElo "2422"]
[TimeControl "180+1"]
[EndTime "8:17:51 PDT"]
[Termination "Darko-Dimitrijevic won on time"]

1. g3 {[%clk 0:02:59.1]} 1... d5 {[%clk 0:02:56.6]} 2. Bg2 {[%clk 0:02:58.2]}
2... e5 {[%clk 0:02:55.3]} 3. c4 {[%clk 0:02:57.7]} 3... d4 {[%clk 0:02:53.1]}
4. d3 {[%clk 0:02:51.7]} 4... Nf6 {[%clk 0:02:45.9]} 5. b3 {[%clk 0:02:47.2]}
5... Nc6 {[%clk 0:02:39.4]} 6. Na3 {[%clk 0:02:46.2]} 6... Bb4+ {[%clk
0:02:38.5]} 7. Kf1 {[%clk 0:02:43.5]} 7... h6 {[%clk 0:02:35.7]} 8. Nc2 {[%clk
0:02:43]} 8... Bc5 {[%clk 0:02:30.3]} 9. a3 {[%clk 0:02:41.7]} 9... a5 {[%clk
0:02:30.6]} 10. Rb1 {[%clk 0:02:39]} 10... Qe7 {[%clk 0:02:28.1]} 11. Nf3 {[%clk
0:02:36.4]} 11... O-O {[%clk 0:02:25.3]} 12. h3 {[%clk 0:02:35.2]} 12... Bf5
{[%clk 0:02:25]} 13. Nd2 {[%clk 0:02:21.4]} 13... e4 {[%clk 0:02:21.2]} 14. Kg1
{[%clk 0:02:11]} 14... exd3 {[%clk 0:02:15.9]} 15. exd3 {[%clk 0:02:10.2]} 15...
Bxd3 {[%clk 0:02:15.6]} 16. Nf3 {[%clk 0:02:09.5]} 16... Be2 {[%clk 0:02:11.4]}
17. Qd2 {[%clk 0:02:05.7]} 17... d3 {[%clk 0:02:07.9]} 18. Ne3 {[%clk 0:02:05]}
18... Ne4 {[%clk 0:02:05.9]} 19. Qb2 {[%clk 0:02:01.7]} 19... Nxg3 {[%clk
0:01:57.3]} 20. Nd5 {[%clk 0:01:55.8]} 20... Qe6 {[%clk 0:01:06.4]} 21. Nxc7
{[%clk 0:01:24.3]} 21... Qg6 {[%clk 0:00:54.4]} 22. b4 {[%clk 0:01:12.6]} 22...
axb4 {[%clk 0:00:27.2]} 23. axb4 {[%clk 0:01:11.3]} 23... Nxh1 {[%clk
0:00:22.1]} 24. Kxh1 {[%clk 0:01:02.9]} 24... Bxf2 {[%clk 0:00:13.9]} 25. Nxa8
{[%clk 0:01:00.2]} 25... Rxa8 {[%clk 0:00:05.1]} 26. Bf4 {[%clk 0:00:58.3]}
26... Bxf3 {[%clk 0:00:03]} 27. Bxf3 {[%clk 0:00:57.6]} 27... Bg3 {[%clk
0:00:01.1]} 28. Rg1 {[%clk 0:00:53.6]} 28... Qf6 {[%clk 0:00:01.4]} 29. Qxf6
{[%clk 0:00:51.9]} 29... gxf6 {[%clk 0:00:02]} 30. Rxg3+ {[%clk 0:00:51]} 30...
Kf8 {[%clk 0:00:02.5]} 31. Bxc6 {[%clk 0:00:50.9]} 31... Ke7 {[%clk 0:00:01.3]}
32. Rxd3 {[%clk 0:00:49.7]} 32... bxc6 {[%clk 0:00:01.5]} 33. Bd6+ {[%clk
0:00:47.7]} 33... Ke6 {[%clk 0:00:02]} 34. Bc5 {[%clk 0:00:47.1]} 34... Ra1+
{[%clk 0:00:01.4]} 35. Kg2 {[%clk 0:00:46]} 35... Rc1 {[%clk 0:00:02.3]} 36.
Rd6+ {[%clk 0:00:44.8]} 36... Ke5 {[%clk 0:00:02.7]} 37. Rxc6 {[%clk 0:00:43.3]}
37... Rxc4 {[%clk 0:00:02.8]} 38. Rc7 {[%clk 0:00:42.9]} 38... Kd5 {[%clk
0:00:03.4]} 39. Rxf7 {[%clk 0:00:42.2]} 39... Ke6 {[%clk 0:00:03.3]} 40. Rh7
{[%clk 0:00:41.9]} 40... Rc2+ {[%clk 0:00:02.7]} 41. Kg3 {[%clk 0:00:41.2]}
41... Rc3+ {[%clk 0:00:03.3]} 42. Kh4 {[%clk 0:00:40.8]} 42... Kf5 {[%clk
0:00:03.6]} 43. Rxh6 {[%clk 0:00:38.5]} 43... Rc4+ {[%clk 0:00:04.2]} 44. Kh5
{[%clk 0:00:37.9]} 44... Rc3 {[%clk 0:00:05.1]} 45. h4 {[%clk 0:00:37.3]} 45...
Rb3 {[%clk 0:00:02.6]} 46. Rh8 {[%clk 0:00:36.9]} 46... Rg3 {[%clk 0:00:02.4]}
47. Re8 {[%clk 0:00:34.4]} 1-0